fUSD/lending_fUSD_20250708
["ID","MTS","AMOUNT","RATE_DAILY","PERIOD"]
[370421734,1752012647620,-460.0,0.00024657,2]
[370421736,1752012647629,-594.01,0.00024657,2]
[370421738,1752012647638,-875.54,0.00024657,2]
[370421740,1752012647648,-460.0,0.00024657,2]
[370421742,1752012647657,-460.0,0.00024657,2]
[370421744,1752012647667,-567.68,0.00024657,2]
[370421746,1752012647676,-460.0,0.00024657,2]
[370421748,1752012647686,-460.0,0.00024657,2]
[370421750,1752012647695,-460.0,0.00024657,2]
[370421752,1752012647705,-460.0,0.00024657,2]
[370421754,1752012647715,-460.0,0.00024657,2]
[370421756,1752012647729,-460.0,0.00024657,2]
[370421758,1752012647739,-1676.39,0.00024657,2]
[370421760,1752012647748,-460.0,0.00024657,2]
[370421762,1752012647758,-460.0,0.00024657,2]
[370421764,1752012647769,-566.18,0.00024657,2]
[370421766,1752012647778,-1000.0,0.00024657,2]
[370421768,1752012647788,-473.55,0.00024657,2]
[370421770,1752012647799,-769.81,0.00024657,2]
[370421772,1752012647808,-597.27,0.00024657,2]
[370421774,1752012647817,-460.0,0.00024657,2]
[370421776,1752012647827,-460.0,0.00024657,2]
[370421778,1752012647836,-392.98,0.00024657,2]
[370421780,1752012647846,-460.0,0.00024657,2]
[370421782,1752012647855,-460.0,0.00024657,2]
[370421784,1752012647865,-460.0,0.00024657,2]
[370421786,1752012647874,-821.25,0.00024657,2]
[370421788,1752012647884,-540.19,0.00024657,2]
[370421790,1752012647894,-531.59259237,0.00024657,2]
[370422508,1752012770921,157.04,0.00013699,2]
[370422512,1752013263941,1500.0,0.00030137,120]
[370422514,1752013510035,7685.92,0.00014,2]
[370422515,1752013510062,8000.0,0.00014,2]
[370422516,1752013510084,8000.0,0.00014,2]
[370422517,1752013510106,8000.0,0.00014,2]
[370422518,1752013510127,8000.0,0.00014,2]
[370422519,1752013510148,8000.0,0.00014,2]
[370422520,1752013510172,2000.0,0.00014,2]
[370422521,1752013510201,48934.70109058,0.00014,2]
[370422522,1752013766684,492.20586771,0.0003013,120]
[370422526,1752013776554,492.05,0.0003013,120]
[370422527,1752013789254,492.05,0.0003013,120]
[370422528,1752013797998,492.05,0.00030136,120]
[370422532,1752013807704,492.05,0.0003013,120]
[370422533,1752013817343,492.05,0.0003013,120]
[370422534,1752013829625,492.05,0.0003013,120]
[370422539,1752013831690,-450.0,0.00018,2]
[370422544,1752013837242,-1578.19956975,0.00018,2]
[370422545,1752013837254,-172.82152562,0.000181,2]
[370422546,1752013837270,-30.08486427,0.000181,2]
[370422547,1752013837283,-300.0,0.00019899,2]
[370422548,1752013837296,-63.78522087,0.00019899,2]
[370422549,1752013837334,-656.21477913,0.00019899,2]
[370422550,1752013837349,-469.00000254,0.000199,2]
[370422551,1752013837370,-21937.8370884,0.000199,2]
[370422552,1752013837383,-12362.63009449,0.0002,2]
[370422553,1752013837395,-170.61057466,0.00021375,2]
[370422554,1752013837409,-150.0,0.00022414,2]
[370422555,1752013837421,-150.0,0.00022414,2]
[370422556,1752013837436,-150.0,0.00022414,2]
[370422559,1752013837449,-150.00000001,0.00022414,2]
[370422561,1752013837462,-150.0,0.00022414,2]
[370422564,1752013837474,-150.0,0.00022414,2]
[370422567,1752013837486,-150.0,0.00022414,2]
[370422569,1752013837497,-505.0,0.00022514,2]
[370422571,1752013837508,-471.21049662,0.000229,8]
[370422573,1752013837519,-200.0,0.00023,2]
[370422575,1752013837529,-182.65,0.00023091,2]
[370422577,1752013837538,-471.21049658,0.00023107,8]
[370422579,1752013837547,-200.0,0.00023134,2]
[370422581,1752013837558,-7654.84,0.00023134,2]
[370422583,1752013837567,-471.21049658,0.00023314,9]
[370422585,1752013837576,-168.91,0.00023398,2]
[370422587,1752013837587,-1000.0,0.00023429,2]
[370422589,1752013837596,-151.0,0.00023429,2]
[370422591,1752013837605,-666.0,0.00023437,2]
[370422593,1752013837615,-151.42,0.00023453,2]
[370422595,1752013837625,-1042.13,0.00023509,2]
[370422597,1752013837634,-471.21049658,0.00023521,9]
[370422599,1752013837644,-250.0,0.00023544,2]
[370422601,1752013837654,-167.56,0.00023544,2]
[370422603,1752013837664,-503.58,0.0002356,2]
[370422605,1752013837674,-500.0,0.0002357,2]
[370422607,1752013837683,-500.0,0.0002357,2]
[370422609,1752013837692,-500.0,0.0002357,2]
[370422611,1752013837702,-434.16075058,0.0002357,2]
[370422613,1752013837711,-165.05508013,0.0002357,2]
[370422615,1752013837721,-500.0,0.0002357,2]
[370422617,1752013837731,-500.0,0.0002357,2]
[370422619,1752013837740,-500.0,0.0002357,2]
[370422621,1752013837751,-300.0,0.0002357,2]
[370422623,1752013837760,-207.4,0.0002357,2]
[370422625,1752013837770,-151.0,0.0002357,2]
[370422627,1752013837779,-151.0,0.0002357,2]
[370422629,1752013837791,-151.0,0.0002357,2]
[370422631,1752013837801,-151.0,0.0002357,2]
[370422633,1752013837810,-151.0,0.0002357,2]
[370422635,1752013837819,-151.0,0.0002357,2]
[370422636,1752013837829,-151.0,0.0002357,2]
[370422696,1752013838519,-151.0,0.0002357,2]
[370422702,1752013838560,-292.0,0.0002357,2]
[370422706,1752013838594,-20193.6727723,0.00023584,2]
[370422710,1752013838621,-2484.0157748,0.00023584,2]
[370422712,1752013838632,-1222.3114529,0.00023584,2]
[370422714,1752013838641,-163.49,0.00023639,2]
[370422716,1752013838651,-178.43,0.00023662,2]
[370422718,1752013838660,-493.7704326,0.00023686,3]
[370422727,1752013838729,-11.2295674,0.00023686,3]
[370422729,1752013838739,-471.21049658,0.00023728,9]
[370422731,1752013838747,-276.52500147,0.00023934,10]
[370422735,1752013838779,-194.68549511,0.00023934,10]
[370422737,1752013838788,-156.587,0.00023977,2]
[370422739,1752013838797,-2000.0,0.000241,2]
[370422741,1752013838807,-166.68,0.00024109,2]
[370422743,1752013838816,-471.21049658,0.00024141,10]
[370422745,1752013838826,-153.73,0.0002427,2]
[370422747,1752013838834,-471.21049658,0.00024348,11]
[370422749,1752013838844,-826.259864,0.00024432,4]
[370422751,1752013838853,-153.73,0.00024527,2]
[370422753,1752013838862,-168.0,0.00024529,2]
[370422755,1752013838871,-210.34477682,0.00024542,2]
[370422757,1752013838881,-160.0,0.00024542,2]
[370422759,1752013838890,-837.09214054,0.00024542,2]
[370422761,1752013838899,-625.1450208,0.00024549,2]
[370422763,1752013838908,-151.06591224,0.00024549,2]
[370422765,1752013838917,-183.01635912,0.00024549,2]
[370422767,1752013838927,-539.34653738,0.0002455,7]
[370422770,1752013838946,-1077.53746262,0.0002455,7]
[370422772,1752013838955,-157.117,0.0002455,7]
[370422774,1752013838964,-550.45894238,0.00024555,4]
[370422776,1752013838974,-471.21049658,0.00024555,11]
[370422778,1752013838983,-222.34,0.00024557,2]
[370422780,1752013838993,-456.2958,0.00024557,2]
[370422782,1752013839001,-1500.0,0.00024557,2]
[370422783,1752013839010,-1000.0,0.00024557,2]
[370422785,1752013839021,-1030.4067,0.00024557,2]
[370422787,1752013839030,-194.16159192,0.00024557,2]
[370422789,1752013839040,-166.61558195,0.00024557,2]
[370422791,1752013839049,-1134.18769151,0.00024557,2]
[370422793,1752013839058,-168.91,0.00024567,2]
[370422795,1752013839068,-625.14502072,0.00024589,2]
[370422797,1752013839078,-200.0,0.00024596,2]
[370422798,1752013839087,-1134.18769148,0.00024596,2]
[370422800,1752013839097,-2368.81431703,0.000246,10]
[370422802,1752013839107,-151.0659122,0.00024605,2]
[370422804,1752013839117,-168.0,0.00024611,2]
[370422806,1752013839127,-625.14502072,0.00024628,2]
[370422808,1752013839137,-1134.18769148,0.00024635,2]
[370422810,1752013839148,-150.0,0.00024642,2]
[370422812,1752013839157,-9318.1588936,0.00024649,2]
[370422814,1752013839166,-37362.77767665,0.00024649,2]
[370422862,1752013839777,492.05,0.0003013,120]
[370422913,1752013840265,-257.2361232,0.00024649,2]
[370422916,1752013840276,-510.40000028,0.00024649,2]
[370422918,1752013840288,-336.0581857,0.00024649,2]
[370423161,1752013842994,-2603.94750001,0.00024649,2]
[370423188,1752013843231,-3611.3277161,0.00024649,2]
[370423435,1752013845539,-3344.0,0.00024061,2]
[370423437,1752013845550,-7683.53777728,0.00024649,2]
[370423444,1752013845610,-463.5088717,0.00024649,2]
[370423464,1752013845803,-32080.12062881,0.00024649,2]
[370423465,1752013845812,-265.612176,0.00024649,2]
[370423466,1752013845822,-726.152183,0.00024649,2]
[370423467,1752013845831,-65562.6669773,0.0002465,2]
[370423468,1752013845840,-239.87406232,0.00024656,2]
[370423469,1752013845850,-500.0,0.00024656,2]
[370423470,1752013845859,-433.21051984,0.00024656,2]
[370423486,1752013846075,-626.78375537,0.00024656,2]
[370423488,1752013846086,-182.36151612,0.00024656,2]
[370423490,1752013846095,-300.0,0.00024656,2]
[370423493,1752013846105,-1191.0,0.00024657,2]
[370423495,1752013846114,-569.82575845,0.00024657,7]
[370423497,1752013846124,-41681.68205198,0.00024657,7]
[370423499,1752013846133,-210.34477682,0.00024657,7]
[370423501,1752013846143,-258.50640535,0.00024657,2]
[370423503,1752013846153,-993.4191602,0.00024657,2]
[370423505,1752013846162,-460.0,0.00024657,2]
[370423507,1752013846171,-460.0,0.00024657,2]
[370423509,1752013846181,-1207.26,0.00024657,2]
[370423511,1752013846190,-660.16,0.00024657,2]
[370423513,1752013846200,-460.0,0.00024657,2]
[370423515,1752013846210,-479.92889388,0.00024657,2]
[370423517,1752013846219,-924.04,0.00024657,2]
[370423519,1752013846229,-460.0,0.00024657,2]
[370423521,1752013846238,-460.0,0.00024657,2]
[370423523,1752013846248,-460.0,0.00024657,2]
[370423525,1752013846257,-460.0,0.00024657,2]
[370423527,1752013846266,-185.73151816,0.00024657,2]
[370423529,1752013846276,-784.36,0.00024657,2]
[370423531,1752013846285,-460.0,0.00024657,2]
[370423533,1752013846295,-460.0,0.00024657,2]
[370423535,1752013846305,-1006.2,0.00024657,2]
[370423537,1752013846314,-1010.17,0.00024657,2]
[370423539,1752013846323,-1222.81,0.00024657,2]
[370423541,1752013846333,-1222.81,0.00024657,2]
[370423543,1752013846342,-460.0,0.00024657,2]
[370423545,1752013846352,-244.47,0.00024657,2]
[370423547,1752013846365,-460.0,0.00024657,2]
[370423549,1752013846375,-604.86,0.00024657,2]
[370423551,1752013846388,-604.86,0.00024657,2]
[370423553,1752013846398,-460.0,0.00024657,2]
[370423555,1752013846407,-507.96024514,0.00024657,2]
[370423557,1752013846417,-460.0,0.00024657,2]
[370423559,1752013846428,-460.0,0.00024657,2]
[370423561,1752013846438,-162.59601889,0.00024657,2]
[370423563,1752013846448,-460.0,0.00024657,2]
[370423565,1752013846457,-460.0,0.00024657,2]
[370423567,1752013846467,-460.0,0.00024657,2]
[370423569,1752013846477,-460.0,0.00024657,2]
[370423571,1752013846486,-460.0,0.00024657,2]
[370423573,1752013846496,-460.0,0.00024657,2]
[370423575,1752013846507,-460.0,0.00024657,2]
[370423577,1752013846517,-460.0,0.00024657,2]
[370423579,1752013846526,-460.0,0.00024657,2]
[370423581,1752013846536,-460.0,0.00024657,2]
[370423584,1752013846547,-460.0,0.00024657,2]
[370423585,1752013846556,-460.0,0.00024657,2]
[370423587,1752013846565,-460.0,0.00024657,2]
[370423590,1752013846575,-460.0,0.00024657,2]
[370423592,1752013846585,-460.0,0.00024657,2]
[370423594,1752013846594,-460.0,0.00024657,2]
[370423596,1752013846603,-460.0,0.00024657,2]
[370423597,1752013846612,-460.0,0.00024657,2]
[370423601,1752013846622,-460.0,0.00024657,2]
[370423604,1752013846631,-460.0,0.00024657,2]
[370423606,1752013846641,-151.0,0.00024657,7]
[370423608,1752013846651,-746.0,0.00024657,2]
[370423611,1752013846671,-200.0,0.00024657,2]
[370423613,1752013846683,-344.78515358,0.00024657,2]
[370423615,1752013846693,-1303.93,0.00024657,2]
[370423617,1752013846703,-460.0,0.00024657,2]
[370423619,1752013846713,-460.0,0.00024657,2]
[370423621,1752013846723,-466.44,0.00024657,2]
[370423623,1752013846733,-385.51943646,0.00024657,2]
[370423625,1752013846743,-460.0,0.00024657,2]
[370423627,1752013846753,-964.21,0.00024657,2]
[370423629,1752013846763,-460.0,0.00024657,2]
[370423631,1752013846773,-1145.07,0.00024657,2]
[370423633,1752013846783,-460.0,0.00024657,2]
[370423635,1752013846793,-460.0,0.00024657,2]
[370423637,1752013846803,-1300.23,0.00024657,2]
[370423639,1752013846813,-939.01,0.00024657,2]
[370423641,1752013846823,-460.0,0.00024657,2]
[370423643,1752013846833,-909.76,0.00024657,2]
[370423645,1752013846843,-460.0,0.00024657,2]
[370423648,1752013846853,-460.0,0.00024657,2]
[370423650,1752013846863,-460.0,0.00024657,2]
[370423651,1752013846872,-754.42,0.00024657,2]
[370423653,1752013846882,-1023.86,0.00024657,2]
[370423656,1752013846892,-460.0,0.00024657,2]
[370423658,1752013846902,-460.0,0.00024657,2]
[370423660,1752013846912,-460.0,0.00024657,2]
[370423662,1752013846922,-460.0,0.00024657,2]
[370423664,1752013846932,-898.87,0.00024657,2]
[370423666,1752013846942,-567.1,0.00024657,2]
[370423668,1752013846953,-364.88847719,0.00024657,2]
[370423670,1752013846963,-492.591147,0.00024657,2]
[370423672,1752013846972,-269.51948275,0.00024657,2]
[370423674,1752013846983,-862.29,0.00024657,2]
[370423676,1752013846993,-475.22,0.00024657,2]
[370423678,1752013847003,-1092.39,0.00024657,2]
[370423680,1752013847013,-460.0,0.00024657,2]
[370423682,1752013847024,-717.82,0.00024657,2]
[370423684,1752013847034,-522.18,0.00024657,2]
[370423686,1752013847045,-460.0,0.00024657,2]
[370423688,1752013847055,-460.0,0.00024657,2]
[370423691,1752013847065,-510.14,0.00024657,2]
[370423693,1752013847075,-468.24,0.00024657,2]
[370423695,1752013847085,-503.73,0.00024657,2]
[370423697,1752013847094,-460.0,0.00024657,2]
[370423699,1752013847105,-587.22900961,0.00024657,2]
[370423701,1752013847115,-460.0,0.00024657,2]
[370423703,1752013847125,-239.45189735,0.00024657,2]
[370423705,1752013847135,-460.0,0.00024657,2]
[370423707,1752013847145,-460.0,0.00024657,2]
[370423709,1752013847154,-890.42,0.00024657,2]
[370423711,1752013847164,-460.0,0.00024657,2]
[370423713,1752013847173,-460.0,0.00024657,2]
[370423715,1752013847183,-460.0,0.00024657,2]
[370423717,1752013847194,-490.0,0.00024657,2]
[370423719,1752013847204,-460.0,0.00024657,2]
[370423721,1752013847213,-460.0,0.00024657,2]
[370423723,1752013847223,-460.0,0.00024657,2]
[370423725,1752013847233,-460.0,0.00024657,2]
[370423727,1752013847243,-947.41,0.00024657,2]
[370423729,1752013847253,-460.0,0.00024657,2]
[370423732,1752013847263,-1282.4,0.00024657,2]
[370423734,1752013847272,-460.0,0.00024657,2]
[370423736,1752013847282,-460.0,0.00024657,2]
[370423738,1752013847293,-478.07204671,0.00024657,2]
[370423740,1752013847303,-460.0,0.00024657,2]
[370423742,1752013847312,-460.0,0.00024657,2]
[370423744,1752013847322,-460.0,0.00024657,2]
[370423758,1752013847332,-549.33,0.00024657,2]
[370423760,1752013847463,-472.18,0.00024657,2]
[370423762,1752013847472,-460.0,0.00024657,2]
[370423764,1752013847482,-774.17,0.00024657,2]
[370423766,1752013847491,-601.31,0.00024657,2]
[370423768,1752013847500,-460.0,0.00024657,2]
[370423770,1752013847510,-697.19,0.00024657,2]
[370423772,1752013847519,-338.63038748,0.00024657,2]
[370423774,1752013847529,-692.61,0.00024657,2]
[370423776,1752013847538,-460.0,0.00024657,2]
[370423778,1752013847547,-460.0,0.00024657,2]
[370423780,1752013847557,-460.0,0.00024657,2]
[370423782,1752013847566,-460.0,0.00024657,2]
[370423784,1752013847576,-460.0,0.00024657,2]
[370423786,1752013847585,-460.0,0.00024657,2]
[370423788,1752013847594,-460.0,0.00024657,2]
[370423790,1752013847603,-460.0,0.00024657,2]
[370423792,1752013847612,-460.0,0.00024657,2]
[370423794,1752013847622,-765.03,0.00024657,2]
[370423796,1752013847631,-460.0,0.00024657,2]
[370423798,1752013847640,-460.0,0.00024657,2]
[370423800,1752013847650,-822.1,0.00024657,2]
[370423802,1752013847659,-460.0,0.00024657,2]
[370423804,1752013847668,-460.0,0.00024657,2]
[370423806,1752013847678,-601.73,0.00024657,2]
[370423808,1752013847689,-479.59,0.00024657,2]
[370423809,1752013847699,-460.0,0.00024657,2]
[370423812,1752013847709,-460.0,0.00024657,2]
[370423814,1752013847718,-460.0,0.00024657,2]
[370423816,1752013847728,-566.72,0.00024657,2]
[370423818,1752013847738,-460.0,0.00024657,2]
[370423820,1752013847748,-699.45,0.00024657,2]
[370423821,1752013847757,-264.05542482,0.00024657,2]
[370423823,1752013847766,-1148.28,0.00024657,2]
[370423825,1752013847776,-603.57,0.00024657,2]
[370423827,1752013847785,-597.25,0.00024657,2]
[370423829,1752013847795,-460.0,0.00024657,2]
[370423831,1752013847804,-459.78824216,0.00024657,2]
[370423834,1752013847814,-609.25,0.00024657,2]
[370423835,1752013847823,-460.0,0.00024657,2]
[370423837,1752013847832,-460.0,0.00024657,2]
[370423839,1752013847842,-1205.8,0.00024657,2]
[370423842,1752013847852,-460.0,0.00024657,2]
[370423844,1752013847861,-633.81,0.00024657,2]
[370423846,1752013847871,-460.0,0.00024657,2]
[370423848,1752013847880,-460.0,0.00024657,2]
[370423850,1752013847890,-709.53,0.00024657,2]
[370423852,1752013847900,-740.21,0.00024657,2]
[370423853,1752013847909,-1108.16,0.00024657,2]
[370423856,1752013847918,-786.79,0.00024657,2]
[370423858,1752013847928,-509.03269819,0.00024657,2]
[370423859,1752013847937,-582.92,0.00024657,2]
[370423862,1752013847946,-460.0,0.00024657,2]
[370423863,1752013847955,-560.02,0.00024657,2]
[370423866,1752013847965,-842.9,0.00024657,2]
[370423867,1752013847975,-460.0,0.00024657,2]
[370423869,1752013847983,-460.0,0.00024657,2]
[370423871,1752013847993,-474.79,0.00024657,2]
[370423873,1752013848002,-460.0,0.00024657,2]
[370423875,1752013848012,-460.0,0.00024657,2]
[370423877,1752013848022,-460.0,0.00024657,2]
[370423879,1752013848031,-460.0,0.00024657,2]
[370423881,1752013848041,-460.0,0.00024657,2]
[370423883,1752013848050,-460.0,0.00024657,2]
[370423886,1752013848059,-498.7,0.00024657,2]
[370423888,1752013848069,-873.48,0.00024657,2]
[370423890,1752013848078,-460.0,0.00024657,2]
[370423891,1752013848088,-460.0,0.00024657,2]
[370423894,1752013848098,-1322.68,0.00024657,2]
[370423895,1752013848107,-297.99919518,0.00024657,2]
[370423897,1752013848117,-460.0,0.00024657,2]
[370423900,1752013848127,-460.0,0.00024657,2]
[370423902,1752013848137,-460.0,0.00024657,2]
[370423904,1752013848146,-460.0,0.00024657,2]
[370423906,1752013848156,-460.0,0.00024657,2]
[370423908,1752013848165,-460.0,0.00024657,2]
[370423910,1752013848175,-204.0030586,0.00024657,2]
[370423912,1752013848184,-843.35,0.00024657,2]
[370423914,1752013848194,-304.18178801,0.00024657,2]
[370423915,1752013848203,-1431.87,0.00024657,2]
[370423918,1752013848212,-460.0,0.00024657,2]
[370423920,1752013848222,-535.51,0.00024657,2]
[370423922,1752013848231,-460.0,0.00024657,2]
[370423924,1752013848241,-460.0,0.00024657,2]
[370423925,1752013848250,-1053.07,0.00024657,2]
[370423927,1752013848259,-460.0,0.00024657,2]
[370423929,1752013848269,-479.79,0.00024657,2]
[370423932,1752013848279,-529.13,0.00024657,2]
[370423934,1752013848289,-460.0,0.00024657,2]
[370423935,1752013848298,-460.0,0.00024657,2]
[370423936,1752013848308,-460.0,0.00024657,2]
[370423937,1752013848317,-685.26,0.00024657,2]
[370423938,1752013848328,-460.0,0.00024657,2]
[370423940,1752013848338,-460.0,0.00024657,2]
[370423942,1752013848348,-460.0,0.00024657,2]
[370423944,1752013848363,-460.0,0.00024657,2]
[370423946,1752013848376,-493.78,0.00024657,2]
[370423948,1752013848385,-460.0,0.00024657,2]
[370423950,1752013848396,-471.82,0.00024657,2]
[370423952,1752013848407,-460.0,0.00024657,2]
[370423954,1752013848416,-460.0,0.00024657,2]
[370423956,1752013848425,-465.87,0.00024657,2]
[370423958,1752013848435,-460.0,0.00024657,2]
[370423960,1752013848445,-460.0,0.00024657,2]
[370423962,1752013848455,-322.8,0.00024657,2]
[370423964,1752013848464,-460.0,0.00024657,2]
[370423966,1752013848473,-460.0,0.00024657,2]
[370423968,1752013848482,-460.0,0.00024657,2]
[370423970,1752013848491,-460.0,0.00024657,2]
[370423972,1752013848502,-460.0,0.00024657,2]
[370423974,1752013848511,-460.0,0.00024657,2]
[370423976,1752013848521,-545.5,0.00024657,2]
[370423978,1752013848531,-460.0,0.00024657,2]
[370423980,1752013848540,-460.0,0.00024657,2]
[370423982,1752013848550,-460.0,0.00024657,2]
[370423984,1752013848559,-460.0,0.00024657,2]
[370423986,1752013848569,-460.0,0.00024657,2]
[370423988,1752013848578,-460.0,0.00024657,2]
[370423990,1752013848587,-462.74,0.00024657,2]
[370423992,1752013848596,-464.31,0.00024657,2]
[370423994,1752013848605,-460.0,0.00024657,2]
[370423996,1752013848615,-460.0,0.00024657,2]
[370423998,1752013848624,-460.0,0.00024657,2]
[370424000,1752013848634,-496.3,0.00024657,2]
[370424002,1752013848643,-550.55,0.00024657,2]
[370424004,1752013848653,-460.0,0.00024657,2]
[370424006,1752013848662,-538.74,0.00024657,2]
[370424008,1752013848672,-460.0,0.00024657,2]
[370424010,1752013848681,-460.0,0.00024657,2]
[370424012,1752013848691,-460.0,0.00024657,2]
[370424014,1752013848700,-460.0,0.00024657,2]
[370424016,1752013848710,-1321.12,0.00024657,2]
[370424018,1752013848719,-1240.92,0.00024657,2]
[370424020,1752013848728,-883.1,0.00024657,2]
[370424022,1752013848738,-460.0,0.00024657,2]
[370424024,1752013848747,-460.0,0.00024657,2]
[370424026,1752013848756,-460.0,0.00024657,2]
[370424028,1752013848765,-460.0,0.00024657,2]
[370424030,1752013848774,-460.0,0.00024657,2]
[370424032,1752013848784,-460.0,0.00024657,2]
[370424034,1752013848793,-460.0,0.00024657,2]
[370424036,1752013848802,-460.0,0.00024657,2]
[370424038,1752013848811,-650.32,0.00024657,2]
[370424040,1752013848820,-460.0,0.00024657,2]
[370424042,1752013848830,-460.0,0.00024657,2]
[370424044,1752013848840,-494.4,0.00024657,2]
[370424046,1752013848849,-460.0,0.00024657,2]
[370424048,1752013848858,-460.0,0.00024657,2]
[370424050,1752013848868,-460.0,0.00024657,2]
[370424052,1752013848877,-1369.68,0.00024657,2]
[370424054,1752013848887,-643.5,0.00024657,2]
[370424056,1752013848896,-460.0,0.00024657,2]
[370424058,1752013848906,-460.0,0.00024657,2]
[370424060,1752013848915,-460.0,0.00024657,2]
[370424062,1752013848925,-460.0,0.00024657,2]
[370424064,1752013848934,-460.0,0.00024657,2]
[370424066,1752013848944,-460.0,0.00024657,2]
[370424068,1752013848953,-460.0,0.00024657,2]
[370424070,1752013848962,-460.0,0.00024657,2]
[370424072,1752013848972,-521.12,0.00024657,2]
[370424074,1752013848982,-1124.43,0.00024657,2]
[370424076,1752013848992,-460.0,0.00024657,2]
[370424078,1752013849001,-460.0,0.00024657,2]
[370424080,1752013849010,-789.48,0.00024657,2]
[370424082,1752013849020,-460.0,0.00024657,2]
[370424084,1752013849029,-1158.15,0.00024657,2]
[370424086,1752013849039,-472.62,0.00024657,2]
[370424087,1752013849048,-670.96,0.00024657,2]
[370424089,1752013849058,-460.0,0.00024657,2]
[370424091,1752013849069,-713.42,0.00024657,2]
[370424094,1752013849079,-460.0,0.00024657,2]
[370424095,1752013849089,-460.0,0.00024657,2]
[370424097,1752013849099,-1165.12,0.00024657,2]
[370424100,1752013849109,-460.0,0.00024657,2]
[370424101,1752013849119,-460.0,0.00024657,2]
[370424103,1752013849128,-1107.93,0.00024657,2]
[370424105,1752013849138,-460.0,0.00024657,2]
[370424107,1752013849147,-626.57,0.00024657,2]
[370424109,1752013849157,-460.0,0.00024657,2]
[370424111,1752013849167,-460.0,0.00024657,2]
[370424113,1752013849176,-460.0,0.00024657,2]
[370424115,1752013849185,-460.0,0.00024657,2]
[370424117,1752013849195,-460.0,0.00024657,2]
[370424119,1752013849204,-631.95,0.00024657,2]
[370424122,1752013849214,-200.0,0.00024657,2]
[370424124,1752013849223,-976.36,0.00024657,2]
[370424125,1752013849232,-266.56688762,0.00024657,2]
[370424127,1752013849242,-460.0,0.00024657,2]
[370424129,1752013849251,-694.17,0.00024657,2]
[370424131,1752013849260,-460.0,0.00024657,2]
[370424133,1752013849269,-535.48,0.00024657,2]
[370424135,1752013849279,-460.0,0.00024657,2]
[370424137,1752013849288,-662.25,0.00024657,2]
[370424139,1752013849297,-460.0,0.00024657,2]
[370424141,1752013849307,-602.57,0.00024657,2]
[370424143,1752013849316,-460.0,0.00024657,2]
[370424145,1752013849325,-460.0,0.00024657,2]
[370424147,1752013849335,-460.0,0.00024657,2]
[370424149,1752013849344,-460.0,0.00024657,2]
[370424151,1752013849354,-210.0,0.00024657,2]
[370424153,1752013849367,-460.0,0.00024657,2]
[370424155,1752013849376,-458.0,0.00024657,2]
[370424157,1752013849386,-600.51,0.00024657,2]
[370424159,1752013849395,-460.0,0.00024657,2]
[370424161,1752013849405,-1043.43,0.00024657,2]
[370424163,1752013849415,-2057.02,0.00024657,2]
[370424165,1752013849425,-460.0,0.00024657,2]